Department Family,Entity,Date,Expense Type,Expense Area,Supplier,Transaction Number,AP Amount,VAT Registration Number,Purchase Invoice Number,
Department of Health,Bridgewater Community Healthcare NHS Foundation Trust,2/28/2019,"Books, Journals & Subscr",Health Care Libraries,OXFORD UNIVERSITY PRESS,28306946,"82,941.97",125506730,XI11752975,
Department of Health,Bridgewater Community Healthcare NHS Foundation Trust,2/28/2019,Computer Software/License,Computing,PHOENIX PARTNERSHIP (LEEDS) LTD,29284146,"139,424.60",721671841,9396,
Department of Health,Bridgewater Community Healthcare NHS Foundation Trust,2/28/2019,Drugs,Medicines Management,NHS BUSINESS SERVICES AUTHORITY,29464356,"103,397.17",654434729,1000057377,
Department of Health,Bridgewater Community Healthcare NHS Foundation Trust,2/28/2019,Continence Products,Continence Adult Halton,ESSITY UK LTD,29464367,"25,754.86",GB 600 4331 06,6401461248,
Department of Health,Bridgewater Community Healthcare NHS Foundation Trust,2/28/2019,Drugs,Offender Health - Wymott,LLOYDS PHARMACY LTD,29464385,"36,786.60",222516987,77698,
Department of Health,Bridgewater Community Healthcare NHS Foundation Trust,2/28/2019,Drugs,Offender Health - Wymott,LLOYDS PHARMACY LTD,29464395,"36,667.75",222516987,78531,
Department of Health,Bridgewater Community Healthcare NHS Foundation Trust,2/28/2019,Drugs,Medicines Management,NHS BUSINESS SERVICES AUTHORITY,29464428,"95,414.99",654434729,1000058725,
Department of Health,Bridgewater Community Healthcare NHS Foundation Trust,2/28/2019,Services Received - NHSTs,IT Systems and Management,ST HELENS & KNOWSLEY HOSPITALS NHS TRUST,29514409,"60,045.72",654943996,16781509,
Department of Health,Bridgewater Community Healthcare NHS Foundation Trust,2/28/2019,SrvcsRecd-FoundationTrust,Human Resources,WRIGHTINGTON WIGAN & LEIGH NHS FOUNDATION TRUST,29514417,"44,873.00",654951509,55584814,
Department of Health,Bridgewater Community Healthcare NHS Foundation Trust,2/28/2019,Audit Fees: Internal,Finance,ROYAL LIVERPOOL&BROADGREEN UNIVERSITY HOSPITALS NHS TRUST (THE),29522394,"32,830.00",654966000,8610089785,
Department of Health,Bridgewater Community Healthcare NHS Foundation Trust,2/28/2019,Commercial Sector,Offender Health - Garth,NATIONAL OFFENDER MANAGEMENT SERVICE,29569926,"49,599.75",,2154855,
Department of Health,Bridgewater Community Healthcare NHS Foundation Trust,2/28/2019,Commercial Sector,Offender Health - Wymott,NATIONAL OFFENDER MANAGEMENT SERVICE,29569928,"29,355.59",,2161822,
Department of Health,Bridgewater Community Healthcare NHS Foundation Trust,2/28/2019,SrvcsRecd-FoundationTrust,Offender Health - Risley,GREATER MANCHESTER WEST MENTAL HEALTH NHS FOUNDATION TRUST,29569933,"43,453.14",654929594,0000030681,
Department of Health,Bridgewater Community Healthcare NHS Foundation Trust,2/28/2019,SrvcsRecd-FoundationTrust,Offender Health - St Catherines,GREATER MANCHESTER WEST MENTAL HEALTH NHS FOUNDATION TRUST,29569933,"33,135.86",654929594,0000030681,
Department of Health,Bridgewater Community Healthcare NHS Foundation Trust,2/28/2019,SrvcsRecd-FoundationTrust,Offender Health HM Prison Healthcare (Hindley),GREATER MANCHESTER WEST MENTAL HEALTH NHS FOUNDATION TRUST,29569933,"76,820.06",654929594,0000030681,
Department of Health,Bridgewater Community Healthcare NHS Foundation Trust,2/28/2019,Commercial Sector,Offender Health - Wymott,NATIONAL OFFENDER MANAGEMENT SERVICE,29569967,"27,403.52",,2164984,
Department of Health,Bridgewater Community Healthcare NHS Foundation Trust,2/28/2019,Agency Medical Consultant,Dermatology Service - Warrington,GEOMETRIC RESULTS INTERNATIONAL LTD,29637893,"36,633.02",GB 108 2470 36,1727880,
Department of Health,Bridgewater Community Healthcare NHS Foundation Trust,2/28/2019,Continence Products,Continence Adult - Warrington,ESSITY UK LTD,29679744,"44,818.22",GB 600 4331 06,6401482510,
Department of Health,Bridgewater Community Healthcare NHS Foundation Trust,2/28/2019,Drugs,Offender Health - Wymott,LLOYDS PHARMACY LTD,29679823,"38,570.91",222516987,79822,
Department of Health,Bridgewater Community Healthcare NHS Foundation Trust,2/28/2019,Services Received - NHSTs,Midwifery - Halton,ST HELENS & KNOWSLEY HOSPITALS NHS TRUST,29679839,"55,601.00",654943996,16782366,
Department of Health,Bridgewater Community Healthcare NHS Foundation Trust,2/28/2019,Drugs,Medicines Management,NHS BUSINESS SERVICES AUTHORITY,29727858,"94,497.52",654434729,1000056709,
Department of Health,Bridgewater Community Healthcare NHS Foundation Trust,2/28/2019,Services Received - NHSTs,IT Systems and Management,ST HELENS & KNOWSLEY HOSPITALS NHS TRUST,29727863,"60,045.72",654943996,16779759,
Department of Health,Bridgewater Community Healthcare NHS Foundation Trust,2/28/2019,Independent Sector,Intermediate Care Bed Based Team - Warrington,PHOENIX HEALTH WARRINGTON LTD,29727870,"39,000.00",,201819QTR4,
Department of Health,Bridgewater Community Healthcare NHS Foundation Trust,2/28/2019,Services Received - NHSTs,IT Systems and Management,ST HELENS & KNOWSLEY HOSPITALS NHS TRUST,29727901,"60,045.72",654943996,16782222,
Department of Health,Bridgewater Community Healthcare NHS Foundation Trust,2/28/2019,SrvcsRecd-FoundationTrust,Offender Health - Wymott,GREATER MANCHESTER WEST MENTAL HEALTH NHS FOUNDATION TRUST,29739405,"58,449.00",654929594,0000027620,
Department of Health,Bridgewater Community Healthcare NHS Foundation Trust,2/28/2019,Lease Rents,Widnes HCRC,COMMUNITY HEALTH PARTNERSHIPS LTD,29739493,"72,681.57",GB782562113,0060080179,
Department of Health,Bridgewater Community Healthcare NHS Foundation Trust,2/28/2019,Lease Rents,Chandler House,COMMUNITY HEALTH PARTNERSHIPS LTD,29739500,"48,126.84",GB782562113,0060080194,
Department of Health,Bridgewater Community Healthcare NHS Foundation Trust,2/28/2019,Lease Rents,Claire House,COMMUNITY HEALTH PARTNERSHIPS LTD,29739500,"33,482.59",GB782562113,0060080194,
Department of Health,Bridgewater Community Healthcare NHS Foundation Trust,2/28/2019,Lease Rents,Leigh Health Centre,COMMUNITY HEALTH PARTNERSHIPS LTD,29739500,"88,389.10",GB782562113,0060080194,
Department of Health,Bridgewater Community Healthcare NHS Foundation Trust,2/28/2019,Lease Rents,Pemberton,COMMUNITY HEALTH PARTNERSHIPS LTD,29739500,"31,249.73",GB782562113,0060080194,
Department of Health,Bridgewater Community Healthcare NHS Foundation Trust,2/28/2019,Lease Rents,Platt Bridge,COMMUNITY HEALTH PARTNERSHIPS LTD,29739500,"67,811.22",GB782562113,0060080194,
Department of Health,Bridgewater Community Healthcare NHS Foundation Trust,2/28/2019,Lease Rents,Wigan Health Centre - Boston House,COMMUNITY HEALTH PARTNERSHIPS LTD,29739500,"66,957.69",GB782562113,0060080194,
Department of Health,Bridgewater Community Healthcare NHS Foundation Trust,2/28/2019,Lease Rents,Widnes HCRC,COMMUNITY HEALTH PARTNERSHIPS LTD,29739514,"72,681.57",GB782562113,0060083304,
Department of Health,Bridgewater Community Healthcare NHS Foundation Trust,2/28/2019,Lease Rents,Widnes HCRC,COMMUNITY HEALTH PARTNERSHIPS LTD,29739553,"72,681.57",GB782562113,0060088110,
Department of Health,Bridgewater Community Healthcare NHS Foundation Trust,2/28/2019,Lease Rents,Bath Street,COMMUNITY HEALTH PARTNERSHIPS LTD,29739565,"62,368.10",GB782562113,0060091232,
Department of Health,Bridgewater Community Healthcare NHS Foundation Trust,2/28/2019,Lease Rents,Child Development Centre Orford,COMMUNITY HEALTH PARTNERSHIPS LTD,29739565,"45,396.94",GB782562113,0060091232,
Department of Health,Bridgewater Community Healthcare NHS Foundation Trust,2/28/2019,Lease Rents,Widnes HCRC,COMMUNITY HEALTH PARTNERSHIPS LTD,29739570,"72,681.57",GB782562113,0060091176,
Department of Health,Bridgewater Community Healthcare NHS Foundation Trust,2/28/2019,Rent,Chandler House,COMMUNITY HEALTH PARTNERSHIPS LTD,29739589,"48,126.84",GB782562113,0060095105,
Department of Health,Bridgewater Community Healthcare NHS Foundation Trust,2/28/2019,Rent,Claire House,COMMUNITY HEALTH PARTNERSHIPS LTD,29739589,"33,482.59",GB782562113,0060095105,
Department of Health,Bridgewater Community Healthcare NHS Foundation Trust,2/28/2019,Rent,Leigh Health Centre,COMMUNITY HEALTH PARTNERSHIPS LTD,29739589,"87,372.74",GB782562113,0060095105,
Department of Health,Bridgewater Community Healthcare NHS Foundation Trust,2/28/2019,Rent,Platt Bridge,COMMUNITY HEALTH PARTNERSHIPS LTD,29739589,"68,420.73",GB782562113,0060095105,
Department of Health,Bridgewater Community Healthcare NHS Foundation Trust,2/28/2019,Rent,Wigan Health Centre - Boston House,COMMUNITY HEALTH PARTNERSHIPS LTD,29739589,"67,679.65",GB782562113,0060095105,
Department of Health,Bridgewater Community Healthcare NHS Foundation Trust,2/28/2019,Rent,Bath Street,COMMUNITY HEALTH PARTNERSHIPS LTD,29739594,"62,368.10",GB782562113,0060095104,
Department of Health,Bridgewater Community Healthcare NHS Foundation Trust,2/28/2019,Rent,Child Development Centre Orford,COMMUNITY HEALTH PARTNERSHIPS LTD,29739594,"45,396.94",GB782562113,0060095104,
Department of Health,Bridgewater Community Healthcare NHS Foundation Trust,2/28/2019,Rent,Widnes HCRC,COMMUNITY HEALTH PARTNERSHIPS LTD,29739599,"72,681.57",GB782562113,0060095092,
Department of Health,Bridgewater Community Healthcare NHS Foundation Trust,2/28/2019,Rent,Chandler House,COMMUNITY HEALTH PARTNERSHIPS LTD,29739604,"60,283.96",GB782562113,0060098534,
Department of Health,Bridgewater Community Healthcare NHS Foundation Trust,2/28/2019,Rent,Claire House,COMMUNITY HEALTH PARTNERSHIPS LTD,29739604,"33,482.59",GB782562113,0060098534,
Department of Health,Bridgewater Community Healthcare NHS Foundation Trust,2/28/2019,Rent,Leigh Health Centre,COMMUNITY HEALTH PARTNERSHIPS LTD,29739604,"87,372.74",GB782562113,0060098534,
Department of Health,Bridgewater Community Healthcare NHS Foundation Trust,2/28/2019,Rent,Platt Bridge,COMMUNITY HEALTH PARTNERSHIPS LTD,29739604,"68,420.73",GB782562113,0060098534,
Department of Health,Bridgewater Community Healthcare NHS Foundation Trust,2/28/2019,Rent,Wigan Health Centre - Boston House,COMMUNITY HEALTH PARTNERSHIPS LTD,29739604,"67,679.65",GB782562113,0060098534,
Department of Health,Bridgewater Community Healthcare NHS Foundation Trust,2/28/2019,Rent,Bath Street,COMMUNITY HEALTH PARTNERSHIPS LTD,29739609,"62,368.10",GB782562113,0060098533,
Department of Health,Bridgewater Community Healthcare NHS Foundation Trust,2/28/2019,Rent,Child Development Centre Orford,COMMUNITY HEALTH PARTNERSHIPS LTD,29739609,"45,396.94",GB782562113,0060098533,
Department of Health,Bridgewater Community Healthcare NHS Foundation Trust,2/28/2019,Rent,Widnes HCRC,COMMUNITY HEALTH PARTNERSHIPS LTD,29739614,"72,681.57",GB782562113,0060098523,
